bitfinex/quotes_BTCUSD_20260311
["timestamp","ask_amount","ask_price","bid_price","bid_amount"]
[1773240227534,0.10011183,70909.0,70872.0,0.00148]
[1773240228881,0.10011183,70909.0,70873.0,0.09555436]
[1773240229176,0.41383293,70915.0,70872.0,0.00148]
[1773240229177,0.10011183,70907.0,70872.0,0.00148]
[1773240229984,0.10011183,70907.0,70872.0,0.00144]
[1773240230162,0.09299581,70899.0,70840.0,0.1253957]
[1773240230339,0.43646208,70889.0,70855.0,0.00144]
[1773240230536,0.09299581,70887.0,70855.0,0.00144]
[1773240230731,0.00144,70888.0,70838.0,0.16932]
[1773240230732,0.1253957,70880.0,70853.0,0.00144]
[1773240230934,0.1253957,70880.0,70838.0,0.16932]
[1773240230935,0.09443581,70879.0,70841.0,0.09664431]
[1773240231131,0.09443581,70879.0,70842.0,0.00144]
[1773240231745,0.09443581,70879.0,70853.0,0.001]
[1773240232141,0.1069049,70879.0,70853.0,0.001]
[1773240232467,0.09299581,70878.0,70853.0,0.001]
[1773240232784,0.09299581,70878.0,70842.0,0.00164]
[1773240232988,0.09299581,70869.0,70842.0,0.0002]
[1773240233187,0.09299581,70867.0,70842.0,0.0002]
[1773240233387,0.09299581,70867.0,70840.0,0.00144]
[1773240233598,0.43646208,70859.0,70834.0,0.0002]
[1773240233802,0.09443581,70858.0,70834.0,0.0002]
[1773240234381,0.43646208,70859.0,70834.0,0.0002]
[1773240234382,0.43646208,70859.0,70835.0,0.09664431]
[1773240234562,0.00144,70858.0,70835.0,0.09664431]
[1773240235401,0.43646208,70859.0,70835.0,0.09664431]
[1773240235585,0.00148,70858.0,70835.0,0.09664431]
[1773240235928,0.00148,70861.0,70835.0,0.09664431]
[1773240236078,0.00148,70861.0,70834.0,0.0002]
[1773240236079,0.43646208,70859.0,70834.0,0.0002]
[1773240236287,0.00144,70858.0,70834.0,0.0002]
[1773240237106,0.09299581,70868.0,70835.0,0.09664431]
[1773240237300,0.00144,70867.0,70835.0,0.09664431]
[1773240237500,0.09299581,70878.0,70835.0,0.09664431]
[1773240237791,0.00144,70877.0,70841.0,0.09664431]
[1773240237991,0.00144,70877.0,70843.0,0.09664431]
[1773240238392,0.00144,70877.0,70846.0,0.20611975]
[1773240238610,0.00144,70877.0,70847.0,0.10947544]
[1773240238814,0.00144,70877.0,70848.0,0.09664431]
[1773240238987,0.09299581,70876.0,70848.0,0.09664431]
[1773240239191,0.09299581,70876.0,70848.0,0.20611975]
[1773240239578,0.00144,70877.0,70852.0,0.09664431]
[1773240239782,0.00144,70877.0,70854.0,0.09664431]
[1773240240029,0.43646208,70889.0,70854.0,0.0964953]
[1773240240236,0.00144,70888.0,70854.0,0.0964953]
[1773240240527,0.09299581,70879.0,70850.0,0.00144]
[1773240240829,0.09299581,70877.0,70850.0,0.00144]
[1773240241034,0.5446949,70889.0,70851.0,0.09664431]
[1773240241277,0.09299581,70888.0,70851.0,0.09664431]
[1773240241448,0.00144,70887.0,70852.0,0.10947544]
[1773240241680,0.00144,70886.0,70853.0,0.09664431]
[1773240241806,0.00144,70886.0,70854.0,0.09664431]
[1773240242432,0.43646208,70889.0,70854.0,0.09664431]
[1773240242433,0.43746208,70889.0,70854.0,0.09664431]
[1773240242645,0.001,70889.0,70861.0,0.09664431]
[1773240242856,0.001,70889.0,70868.0,0.09664431]
[1773240243263,0.001,70889.0,70869.0,0.00148]
[1773240243719,0.001,70889.0,70869.0,0.09812431]
[1773240243839,0.09299581,70910.0,70870.0,0.1253957]
[1773240244040,0.0014,70908.0,70872.0,0.09664431]
[1773240244532,0.0014,70907.0,70872.0,0.09664431]
[1773240244655,0.0014,70907.0,70874.0,0.09664431]
[1773240245086,0.0014,70907.0,70870.0,0.10947544]
[1773240245286,0.09299581,70906.0,70871.0,0.09812431]
[1773240245488,0.09299581,70906.0,70873.0,0.09664431]
[1773240245687,0.0014,70907.0,70875.0,0.20611975]
[1773240245886,0.1280292,70918.0,70877.0,0.09664431]
[1773240246524,0.00144,70908.0,70877.0,0.09664431]
[1773240246695,0.00144,70908.0,70878.0,0.09664431]
[1773240246897,0.00166001,70909.0,70879.0,0.09664431]
[1773240247141,0.00022001,70909.0,70881.0,0.09664431]
[1773240247794,0.00022001,70909.0,70884.0,0.09664431]
[1773240247998,0.00022001,70909.0,70885.0,0.00148]
[1773240248194,0.00022001,70909.0,70886.0,0.09664431]
[1773240248410,0.00022001,70909.0,70885.0,0.11095544]
[1773240248615,0.00022001,70909.0,70890.0,0.09664431]
[1773240249278,0.00022001,70909.0,70883.0,0.16422544]
[1773240249279,0.00022001,70909.0,70891.0,0.00148]
[1773240249459,0.00022001,70909.0,70881.0,0.09764431]
[1773240249460,0.00022001,70909.0,70892.0,0.00148]
[1773240249663,0.00022001,70909.0,70894.0,0.09664431]
[1773240250366,0.00022001,70909.0,70881.0,0.16522544]
[1773240250367,0.00022001,70909.0,70884.0,0.09664431]
[1773240250520,0.00022001,70909.0,70890.0,0.001]
[1773240250887,0.00022001,70909.0,70891.0,0.09664431]
[1773240251072,0.00022001,70909.0,70892.0,0.00148]
[1773240251447,0.00022001,70909.0,70893.0,0.09664431]
[1773240252734,0.00022001,70909.0,70893.0,0.09764431]
[1773240252942,0.00022001,70909.0,70895.0,0.09664431]
[1773240253597,0.00022001,70909.0,70896.0,0.00148]
[1773240255288,0.00022001,70909.0,70896.0,0.00248]
[1773240255701,0.00022001,70909.0,70896.0,0.00348]
[1773240255901,0.00022001,70909.0,70895.0,0.00148]
[1773240256100,0.00022001,70909.0,70896.0,0.001]
[1773240256374,0.00022001,70909.0,70870.0,0.10947544]
[1773240256375,0.09299581,70908.0,70870.0,0.10947544]
[1773240256529,0.09299581,70908.0,70862.0,0.20556095]
[1773240256530,0.09299581,70908.0,70874.0,0.09664431]
[1773240256843,0.09299581,70908.0,70875.0,0.00148]
[1773240257698,0.09299581,70908.0,70876.0,0.00148]
[1773240259845,0.09299581,70908.0,70875.0,0.001]
[1773240260069,0.00022001,70909.0,70858.0,0.09028443]
[1773240260070,0.09664013,70899.0,70858.0,0.09028443]
[1773240260255,0.09664013,70897.0,70860.0,0.09028443]
[1773240260412,0.09664013,70908.0,70862.0,0.09028443]
[1773240260617,0.09664013,70906.0,70864.0,0.09028443]
[1773240261218,0.09664013,70899.0,70865.0,0.00148]
[1773240261457,0.09664013,70899.0,70866.0,0.09028443]
[1773240261882,0.00144,70898.0,70866.0,0.09028443]
[1773240262055,0.09664013,70897.0,70866.0,0.09028443]
[1773240262263,0.10663364,70897.0,70866.0,0.09028443]
[1773240262498,0.09664013,70896.0,70866.0,0.09028443]
[1773240262878,0.09664013,70896.0,70865.0,0.00148]
[1773240263262,0.09664013,70888.0,70865.0,0.00148]
[1773240263525,0.42047523,70889.0,70859.0,0.00148]
[1773240263526,0.09664013,70886.0,70859.0,0.00148]
[1773240263735,0.09664013,70886.0,70866.0,0.0002]
[1773240264465,0.00144,70885.0,70866.0,0.0002]
[1773240264651,0.42047523,70889.0,70866.0,0.0012]
[1773240264652,0.00144,70884.0,70866.0,0.0012]
[1773240264811,0.00144,70884.0,70866.0,0.0002]
[1773240265215,0.09664013,70883.0,70859.0,0.00148]
[1773240265416,0.09664013,70883.0,70860.0,0.00148]
[1773240265637,0.42047523,70889.0,70861.0,0.09028443]
[1773240265816,0.00244,70884.0,70863.0,0.09028443]
[1773240266639,0.00144,70884.0,70863.0,0.09028443]
[1773240268488,0.09664013,70883.0,70863.0,0.001]
[1773240269262,0.09664013,70883.0,70860.0,0.00148]
[1773240269655,0.09664013,70883.0,70863.0,0.001]
[1773240270111,0.09664013,70883.0,70860.0,0.00148]
[1773240270112,0.09664013,70883.0,70858.0,0.0002]
[1773240270259,0.09664013,70879.0,70848.0,0.0002]
[1773240270458,0.09664013,70879.0,70845.0,0.07057658]
[1773240270676,0.09664013,70879.0,70847.0,0.09028443]
[1773240270999,0.00148,70878.0,70847.0,0.09028443]
[1773240271219,0.09664013,70877.0,70847.0,0.09028443]
[1773240272171,0.07054574,70876.0,70849.0,0.07057262]
[1773240272371,0.09664013,70875.0,70849.0,0.07057262]
[1773240272987,0.09664013,70875.0,70863.0,0.0002]
[1773240273575,0.07054574,70876.0,70863.0,0.0002]
[1773240273783,0.07054574,70879.0,70863.0,0.0002]
[1773240273784,0.07202319,70879.0,70863.0,0.09048443]
[1773240274208,0.001,70875.0,70863.0,0.09048443]
[1773240274407,0.001,70875.0,70864.0,0.07055768]
[1773240274838,0.002,70876.0,70864.0,0.07055768]
[1773240275237,0.07054376,70878.0,70864.0,0.07055768]
[1773240275439,0.07054376,70878.0,70863.0,0.0002]
[1773240275639,0.07054376,70878.0,70863.0,0.07075806]
[1773240276616,0.07054376,70878.0,70863.0,0.07075827]
[1773240276617,0.00148,70875.0,70863.0,0.07075827]
[1773240276839,0.09664013,70874.0,70856.0,0.07056565]
[1773240277438,0.07054376,70878.0,70856.0,0.16085008]
[1773240277835,0.07054376,70878.0,70856.0,0.07056565]
[1773240278034,0.09664013,70877.0,70856.0,0.07056565]
[1773240278588,0.09664013,70875.0,70855.0,0.0002]
[1773240278792,0.09664013,70875.0,70855.0,0.07076631]
[1773240279210,0.09664013,70869.0,70830.0,0.09028443]
[1773240279444,0.09664013,70869.0,70805.0,0.48743895]
[1773240279445,0.09664013,70858.0,70832.0,0.07058907]
[1773240279662,0.09664013,70856.0,70833.0,0.07078843]
[1773240279863,0.09664013,70856.0,70833.0,0.0002]
[1773240280469,0.09664013,70856.0,70827.0,0.00168]
[1773240280470,0.12559447,70850.0,70816.0,0.07060532]
[1773240280698,0.12559447,70850.0,70813.0,0.15993269]
[1773240280699,0.09073285,70847.0,70815.0,0.0706065]
[1773240280876,0.09073285,70845.0,70816.0,0.00148]
[1773240281281,0.09073285,70845.0,70815.0,0.0720865]
[1773240281666,0.09073285,70845.0,70814.0,0.0823265]
[1773240282131,0.00148,70844.0,70815.0,0.08932486]
[1773240282606,0.07057362,70848.0,70815.0,0.08932486]
[1773240282805,0.001,70845.0,70817.0,0.08932486]
[1773240282989,0.00148,70844.0,70817.0,0.08932486]
[1773240283388,0.00148,70843.0,70817.0,0.08932486]
[1773240283977,0.00148,70843.0,70816.0,0.07060551]
[1773240284180,0.07057362,70850.0,70817.0,0.08932486]
[1773240284381,0.001,70844.0,70821.0,0.08932486]
[1773240284606,0.001,70844.0,70823.0,0.08932486]
[1773240284766,0.16129072,70864.0,70823.0,0.08932486]
[1773240284767,0.07055868,70863.0,70825.0,0.08932486]
[1773240284968,0.00148,70862.0,70825.0,0.08932486]
[1773240285385,0.09073285,70861.0,70825.0,0.08932486]
[1773240286157,0.00148,70862.0,70825.0,0.08932486]
[1773240286719,0.07056067,70861.0,70826.0,0.07059554]
[1773240286916,0.09073285,70859.0,70827.0,0.08932486]
[1773240287115,0.12559447,70860.0,70828.0,0.09080486]
[1773240287116,0.49227069,70858.0,70828.0,0.09080486]
[1773240287337,0.07056067,70862.0,70828.0,0.09080486]
[1773240287538,0.00148,70861.0,70828.0,0.09080486]
[1773240287991,0.07055538,70867.0,70828.0,0.09080486]
[1773240288282,0.00148,70866.0,70828.0,0.09080486]
[1773240288564,0.07055538,70867.0,70828.0,0.09080486]
[1773240288768,0.00148,70865.0,70832.0,0.07058956]
[1773240288923,0.00148,70865.0,70833.0,0.08932486]
[1773240289435,0.07203673,70865.0,70833.0,0.08932486]
[1773240289631,0.0720367,70865.0,70833.0,0.08932486]
[1773240289872,0.07203672,70865.0,70833.0,0.08932486]
[1773240290223,0.07203672,70865.0,70835.0,0.09337439]
[1773240290528,0.00148,70865.0,70835.0,0.09337439]
[1773240290869,0.1612873,70868.0,70837.0,0.09337439]
[1773240290870,0.00148,70864.0,70837.0,0.09337439]
[1773240291033,0.16280198,70876.0,70837.0,0.09337439]
[1773240291034,0.07054991,70872.0,70837.0,0.09337439]
[1773240291242,0.00148,70871.0,70837.0,0.09337439]
[1773240292482,0.07257997,70875.0,70841.0,0.09337439]
[1773240292719,0.07258001,70875.0,70843.0,0.09337439]
[1773240292926,0.07258001,70875.0,70844.0,0.0705776]
[1773240293082,0.07257991,70875.0,70844.0,0.0705776]
[1773240293283,0.00203301,70875.0,70845.0,0.09337439]
[1773240293516,0.00148,70874.0,70845.0,0.09337439]
[1773240293719,0.00055301,70875.0,70845.0,0.09337439]
[1773240293926,0.00148,70874.0,70845.0,0.09337439]
[1773240294593,0.00203301,70875.0,70845.0,0.09337439]
[1773240295248,0.00203301,70875.0,70847.0,0.09337439]
[1773240295749,0.00203301,70875.0,70848.0,0.00148]
[1773240295750,0.07258037,70875.0,70848.0,0.00148]
[1773240295926,0.07258037,70875.0,70849.0,0.09337439]
[1773240296254,0.00203301,70875.0,70849.0,0.09337439]
[1773240297239,0.00203301,70875.0,70850.0,0.07057163]
[1773240297417,0.00203301,70875.0,70851.0,0.09337439]
[1773240298280,0.00055301,70875.0,70851.0,0.09337439]
[1773240298439,0.00148,70874.0,70851.0,0.09337439]
[1773240299288,0.07054972,70872.0,70849.0,0.07205163]
[1773240299494,0.09225559,70871.0,70849.0,0.07205163]
[1773240299922,0.07054775,70874.0,70850.0,0.09485439]
[1773240300268,0.00055301,70875.0,70850.0,0.09485439]
[1773240300450,0.00148,70874.0,70850.0,0.09485439]
[1773240300650,0.00055301,70875.0,70850.0,0.09485439]
[1773240301165,0.00055301,70875.0,70851.0,0.09337439]
[1773240301351,0.00055301,70875.0,70853.0,0.09337439]
[1773240301820,0.001,70871.0,70853.0,0.09337439]
[1773240302462,0.09325559,70871.0,70852.0,0.07056963]
[1773240302725,0.09325559,70871.0,70854.0,0.09337439]
[1773240302726,0.001,70871.0,70854.0,0.09337439]
[1773240302957,0.09225559,70870.0,70838.0,0.09337439]
[1773240303131,0.09225559,70870.0,70840.0,0.07058159]
[1773240303341,0.0705527,70869.0,70840.0,0.07058159]
[1773240303576,0.09225559,70868.0,70840.0,0.07058159]
[1773240303784,0.09225559,70868.0,70833.0,0.0705878]
[1773240304186,0.08925559,70868.0,70833.0,0.16396219]
[1773240304896,0.00148,70867.0,70834.0,0.09337439]
[1773240305108,0.00148,70867.0,70833.0,0.0705878]
[1773240305109,0.12559447,70860.0,70833.0,0.0705878]
[1773240305252,0.09225559,70858.0,70832.0,0.07078856]
[1773240305449,0.09225559,70856.0,70832.0,0.07078856]
[1773240305658,0.00148,70855.0,70835.0,0.09337439]
[1773240306108,0.07056425,70858.0,70836.0,0.00148]
[1773240306274,0.00148,70854.0,70836.0,0.09485439]
[1773240306477,0.00148,70854.0,70836.0,0.00148]
[1773240306680,0.09225559,70853.0,70834.0,0.00148]
[1773240306906,0.09225559,70853.0,70833.0,0.00148]
[1773240307104,0.09225559,70853.0,70832.0,0.0002]
[1773240307287,0.09225559,70853.0,70828.0,0.0002]
[1773240307489,0.09225559,70849.0,70824.0,0.07059753]
[1773240308386,0.09225559,70847.0,70824.0,0.07059753]
[1773240308731,0.07056963,70852.0,70824.0,0.07059753]
[1773240308933,0.09373559,70851.0,70825.0,0.09337439]
[1773240309319,0.00148,70850.0,70825.0,0.09337439]
[1773240309514,0.07057262,70849.0,70827.0,0.09337439]
[1773240309743,0.07057189,70850.0,70827.0,0.09337439]
[1773240309949,0.00148,70848.0,70827.0,0.09337439]
[1773240310122,0.00148,70847.0,70827.0,0.09337439]
[1773240310345,0.00148,70851.0,70827.0,0.09337439]
[1773240310543,0.00148,70853.0,70827.0,0.09337439]
[1773240311143,0.07056403,70858.0,70827.0,0.09337439]
[1773240311347,0.00148,70857.0,70827.0,0.09337439]
[1773240311552,0.00148,70857.0,70829.0,0.09337439]
[1773240312074,0.40304529,70859.0,70832.0,0.09337439]
[1773240312375,0.09225559,70857.0,70832.0,0.09337439]
[1773240312583,0.09225559,70857.0,70833.0,0.00148]
[1773240312760,0.09225559,70857.0,70828.0,0.07059355]
[1773240312957,0.09225559,70857.0,70830.0,0.00148]
[1773240313159,0.09225559,70857.0,70825.0,0.07059355]
[1773240313160,0.09225559,70857.0,70825.0,0.00148]
[1773240313366,0.09225559,70857.0,70826.0,0.09337439]
[1773240313562,0.09225559,70854.0,70827.0,0.07059454]
[1773240313783,0.07056665,70855.0,70827.0,0.07079454]
[1773240313983,0.09373559,70854.0,70827.0,0.07079454]
[1773240314207,0.09225559,70853.0,70827.0,0.07079454]
[1773240314406,0.00148,70852.0,70828.0,0.09337439]
[1773240314619,0.07156473,70857.0,70828.0,0.09337439]
[1773240314769,0.00148,70855.0,70828.0,0.09337439]
[1773240314972,0.00148,70854.0,70828.0,0.09337439]
[1773240315396,0.00148,70854.0,70829.0,0.00148]
[1773240315615,0.001,70857.0,70833.0,0.09337439]
[1773240315791,0.00148,70860.0,70833.0,0.09337439]
[1773240316134,0.001,70854.0,70833.0,0.09337439]
[1773240316292,0.14060013,70864.0,70833.0,0.09337439]
[1773240316493,0.00148,70862.0,70833.0,0.09337439]
[1773240316700,0.09225559,70861.0,70834.0,0.00148]
[1773240317011,0.09225559,70861.0,70835.0,0.00148]
[1773240317409,0.09225559,70861.0,70836.0,0.09337439]
[1773240317744,0.07075881,70883.0,70840.0,0.12559447]
[1773240317899,0.00170001,70878.0,70841.0,0.09337439]
[1773240318099,0.07054482,70877.0,70841.0,0.09337439]
[1773240318304,0.09225559,70869.0,70837.0,0.07206458]
[1773240318499,0.09225559,70867.0,70837.0,0.07206458]
[1773240319614,0.07055569,70866.0,70839.0,0.07058258]
[1773240319800,0.09273426,70865.0,70839.0,0.07058258]
[1773240320207,0.09273426,70865.0,70840.0,0.00148]
[1773240320409,0.00148,70864.0,70841.0,0.00148]
[1773240320668,0.00148,70864.0,70841.0,0.094735]
[1773240321006,0.00148,70864.0,70841.0,0.093255]
[1773240321207,0.00148,70864.0,70842.0,0.00148]
[1773240321650,0.07055868,70863.0,70844.0,0.0705776]
[1773240322073,0.0705527,70869.0,70844.0,0.0705776]
[1773240322278,0.00022001,70886.0,70850.0,0.12559447]
[1773240322490,0.00022001,70886.0,70862.0,0.093255]
[1773240322491,1e-08,70883.0,70862.0,0.093255]
[1773240322642,1e-08,70883.0,70864.0,0.093255]
[1773240323262,1e-08,70886.0,70864.0,0.093255]
[1773240323662,1e-08,70886.0,70866.0,0.093255]
[1773240324075,1e-08,70886.0,70865.0,0.07055669]
[1773240324262,1e-08,70886.0,70866.0,0.094735]
[1773240324658,1e-08,70893.0,70866.0,0.094735]
[1773240324859,1e-08,70893.0,70871.0,0.093255]
[1773240325131,1e-08,70893.0,70873.0,0.093255]
[1773240325265,0.09273426,70915.0,70880.0,0.12559447]
[1773240325460,0.00048,70916.0,70881.0,0.094735]
[1773240325666,0.00192,70916.0,70885.0,0.093255]
[1773240326015,0.00048,70916.0,70885.0,0.093255]
[1773240326175,0.0003404,70914.0,70885.0,0.093255]
[1773240327841,0.0003404,70914.0,70887.0,0.093255]
[1773240327988,0.0003404,70914.0,70889.0,0.093255]
[1773240329031,0.0003404,70914.0,70890.0,0.00148]
[1773240329362,0.0003404,70914.0,70891.0,0.093255]
[1773240329702,0.0003404,70914.0,70893.0,0.093255]
[1773240330892,1e-08,70916.0,70900.0,0.12559447]
[1773240331104,0.01124,70928.0,70901.0,0.094735]
[1773240331323,0.0003478,70933.0,70901.0,0.094735]
[1773240331324,0.0003478,70933.0,70911.0,0.093255]
[1773240331537,1e-08,70933.0,70921.0,0.093255]
[1773240331750,1e-08,70933.0,70922.0,0.07049998]
[1773240332275,0.0003478,70952.0,70924.0,0.093255]
[1773240332587,0.07063963,70952.0,70924.0,0.093255]
[1773240333116,0.40374369,70964.0,70924.0,0.093255]
[1773240333315,0.47420241,70964.0,70924.0,0.093255]
[1773240333476,0.47420241,70964.0,70925.0,0.00148]
[1773240333682,0.09273426,70963.0,70926.0,0.093255]
[1773240333884,0.1631945,70962.0,70927.0,0.16523001]
[1773240334104,0.09273426,70961.0,70927.0,0.16523001]
[1773240334474,0.00148,70960.0,70928.0,0.094735]
[1773240334719,0.09273426,70959.0,70910.0,0.07051191]
[1773240334867,0.12707447,70960.0,70910.0,0.07051191]
[1773240334868,0.09273426,70948.0,70910.0,0.07051191]
[1773240335085,0.40374369,70949.0,70910.0,0.07051191]
[1773240335086,0.09273426,70946.0,70910.0,0.07051191]
[1773240335286,0.09273426,70946.0,70911.0,0.00148]
[1773240335528,0.40374369,70949.0,70911.0,0.00148]
[1773240335728,0.00148,70948.0,70912.0,0.093255]
[1773240335931,0.07047415,70948.0,70913.0,0.07050893]
[1773240336091,0.00148,70947.0,70914.0,0.093255]
[1773240336292,0.001,70946.0,70914.0,0.093255]
[1773240336660,0.09273426,70945.0,70913.0,0.07050893]
[1773240336824,0.09273426,70945.0,70914.0,0.00148]
[1773240337232,0.09273426,70945.0,70915.0,0.093255]
[1773240337448,0.00148,70944.0,70915.0,0.093255]
[1773240337642,0.00148,70944.0,70914.0,0.00148]
[1773240337961,0.00148,70944.0,70905.0,0.07051589]
[1773240337962,0.09273426,70938.0,70905.0,0.07051589]
[1773240338138,0.09273426,70938.0,70905.0,0.07051688]
[1773240338742,0.07048309,70939.0,70905.0,0.07051688]
[1773240338743,0.07048309,70939.0,70906.0,0.093255]
[1773240338948,0.00148,70938.0,70906.0,0.093255]
[1773240339311,0.09421426,70938.0,70906.0,0.093255]
[1773240339509,0.07048309,70939.0,70908.0,0.093255]
[1773240339735,0.07048089,70942.0,70908.0,0.093255]
[1773240340017,0.07048089,70942.0,70910.0,0.09009328]
[1773240340412,0.0704765,70946.0,70911.0,0.09009328]
[1773240340608,0.001,70939.0,70911.0,0.09009328]
[1773240341015,0.001,70938.0,70911.0,0.09009328]
[1773240341675,0.00148,70943.0,70911.0,0.09009328]
[1773240341904,0.40374369,70949.0,70912.0,0.07050992]
[1773240342110,0.47421764,70949.0,70913.0,0.09009328]
[1773240342548,0.08762857,70948.0,70914.0,0.00148]
[1773240342908,0.08762857,70948.0,70913.0,0.09009328]
[1773240343113,0.08762857,70948.0,70914.0,0.00148]
[1773240343329,0.08762857,70948.0,70912.0,0.07150992]
[1773240343563,0.08762857,70948.0,70913.0,0.00148]
[1773240344410,0.08762857,70946.0,70915.0,0.09009328]
[1773240344817,0.00148,70945.0,70915.0,0.09009328]
[1773240345026,0.001,70948.0,70915.0,0.09009328]
[1773240345230,0.00148,70947.0,70915.0,0.09009328]
[1773240345657,0.47421694,70949.0,70915.0,0.09009328]
[1773240345885,0.00148,70948.0,70915.0,0.09009328]
[1773240346094,0.40374369,70949.0,70915.0,0.09009328]
[1773240346294,0.00148,70947.0,70916.0,0.07050595]
[1773240346583,0.07046838,70954.0,70921.0,0.09009328]
[1773240346584,0.00148,70954.0,70921.0,0.09009328]
[1773240346793,1e-08,70952.0,70931.0,0.09009328]
[1773240346999,1e-08,70952.0,70933.0,0.09009328]
[1773240347200,1e-08,70952.0,70935.0,0.09009328]
[1773240347499,1e-08,70952.0,70936.0,0.00148]
[1773240348103,1e-08,70952.0,70937.0,0.09009328]
[1773240348317,1e-08,70952.0,70938.0,0.07048408]
[1773240348519,1e-08,70952.0,70938.0,0.16057736]
[1773240349791,1e-08,70952.0,70938.0,0.07048408]
[1773240349990,1e-08,70952.0,70936.0,0.07196408]
[1773240349991,1e-08,70952.0,70912.0,0.08562429]
[1773240350184,0.0900522,70951.0,70914.0,0.08562429]
[1773240350390,0.0900522,70947.0,70915.0,0.07050694]
[1773240350635,0.0900522,70947.0,70916.0,0.08562429]
[1773240350793,0.3918734,70948.0,70916.0,0.08562429]
[1773240351927,0.3918734,70948.0,70924.0,0.0002]
[1773240352153,0.3918734,70948.0,70925.0,0.00148]
[1773240352356,0.3918734,70948.0,70926.0,0.070496]
[1773240352357,0.07047514,70947.0,70926.0,0.070496]
[1773240352604,0.07047514,70947.0,70925.0,0.071976]
[1773240352605,0.0900522,70946.0,70925.0,0.07049659]
[1773240353381,0.00148,70945.0,70925.0,0.07049659]
[1773240354229,0.00148,70945.0,70925.0,0.07197659]
[1773240354870,0.07195759,70945.0,70925.0,0.07197659]
[1773240355139,0.0900522,70944.0,70925.0,0.07049659]
[1773240355552,0.00148,70943.0,70925.0,0.07049659]
[1773240355747,0.0900522,70944.0,70925.0,0.07049659]
[1773240355952,0.00148,70943.0,70925.0,0.07049659]
[1773240356391,0.3918734,70948.0,70925.0,0.07049659]
[1773240356605,0.00148,70944.0,70925.0,0.07049659]
[1773240356978,1e-08,70952.0,70926.0,0.08562429]
[1773240357179,0.00148,70951.0,70926.0,0.08562429]
[1773240357971,1e-08,70952.0,70927.0,0.00148]
[1773240358147,1e-08,70952.0,70928.0,0.08562429]
[1773240358547,1e-08,70952.0,70930.0,0.08562429]
[1773240359379,1e-08,70952.0,70931.0,0.08562429]
[1773240359583,1e-08,70960.0,70931.0,0.08562429]
[1773240359911,1e-08,70960.0,70932.0,0.00148]
[1773240360112,1e-08,70960.0,70932.0,0.08710429]
[1773240360766,1e-08,70967.0,70940.0,0.12524769]
[1773240360886,0.0003478,70972.0,70941.0,0.08710429]
[1773240361337,0.0900522,70971.0,70941.0,0.08562429]
[1773240361502,0.0900522,70971.0,70942.0,0.00148]
[1773240361902,0.0900522,70971.0,70943.0,0.00148]
[1773240362509,0.0003478,70972.0,70950.0,0.12524769]
[1773240362746,0.0003478,70972.0,70952.0,0.08562429]
[1773240363172,0.0003478,70972.0,70951.0,0.07195117]
[1773240363173,1e-08,70991.0,70960.0,0.12524769]
[1773240363376,1e-08,70991.0,70961.0,0.08710429]
[1773240363578,0.0006,71000.0,70961.0,0.08710429]
[1773240363579,0.0006,71000.0,70971.0,0.08562429]
[1773240363796,0.0006,71000.0,70960.0,0.15]
[1773240363797,0.0006,71000.0,70973.0,0.08562429]
[1773240363919,0.0006,71000.0,70975.0,0.08562429]
[1773240364121,0.0006,71000.0,70976.0,0.08710429]
[1773240364333,0.0900522,71018.0,70981.0,0.33827392]
[1773240364585,0.0900522,71018.0,70982.0,0.08562429]
[1773240364799,0.0900522,71007.0,70969.0,0.00148]
[1773240365011,0.0900522,70989.0,70962.0,0.00148]
[1773240365218,0.0900522,70987.0,70948.0,0.07047415]
[1773240365421,0.60201373,71008.0,70949.0,0.00148]
[1773240365422,0.0900522,70985.0,70949.0,0.00148]
[1773240365632,0.12524769,70980.0,70946.0,0.08562429]
[1773240365832,0.31716109,71005.0,70941.0,0.00148]
[1773240365833,0.0900522,70969.0,70941.0,0.00148]
[1773240365968,0.0900522,70967.0,70939.0,0.00148]
[1773240366320,0.12524769,70960.0,70928.0,0.01124]
[1773240366535,0.12524769,70960.0,70928.0,0.08173365]
[1773240366536,0.0900522,70959.0,70928.0,0.08173365]
[1773240366787,0.0900522,70957.0,70924.0,0.0002]
[1773240366965,0.0900522,70957.0,70924.0,0.07069765]
[1773240367376,0.0900522,70957.0,70924.0,0.07069754]
[1773240367521,0.0900522,70957.0,70923.0,0.07049897]
[1773240367729,0.0900522,70939.0,70909.0,0.07071246]
[1773240367928,0.3918734,70949.0,70900.0,0.07052101]
[1773240367929,0.0900522,70929.0,70900.0,0.07052101]
[1773240368132,0.0900522,70927.0,70900.0,0.07052101]
[1773240368638,0.00148,70926.0,70900.0,0.07052101]
[1773240368842,0.00148,70925.0,70899.0,0.07052186]
[1773240369052,0.00148,70924.0,70899.0,0.07052186]
[1773240369255,0.3918734,70919.0,70888.0,0.07053375]
[1773240369478,0.3918734,70919.0,70883.0,0.07053796]
[1773240369479,0.21529989,70910.0,70883.0,0.00148]
[1773240369647,0.00148,70909.0,70883.0,0.00148]
[1773240370366,0.00148,70909.0,70876.0,0.07094144]
[1773240370700,0.00148,70909.0,70866.0,0.07055521]
[1773240370701,0.16057605,70898.0,70866.0,0.07055521]
[1773240370856,0.00148,70897.0,70866.0,0.07055569]
[1773240371254,0.0900522,70897.0,70865.0,0.07103632]
[1773240371454,0.0900522,70895.0,70865.0,0.07103632]
[1773240371696,0.00148,70894.0,70865.0,0.07103632]
[1773240371940,0.0900522,70895.0,70865.0,0.07103632]
[1773240372132,0.00148,70893.0,70865.0,0.07103632]
[1773240372479,0.07052385,70898.0,70865.0,0.07103632]
[1773240372679,0.07052385,70898.0,70857.0,0.00148]
[1773240372680,0.3918734,70888.0,70857.0,0.00148]
[1773240372912,0.0915322,70887.0,70857.0,0.00148]
[1773240373250,0.0915322,70887.0,70850.0,0.07057109]
[1773240373251,0.12524769,70880.0,70847.0,0.07120971]
[1773240373365,0.0915322,70879.0,70848.0,0.07057362]
[1773240373577,0.09135329,70879.0,70848.0,0.07057362]
[1773240374613,0.07054375,70878.0,70848.0,0.07057362]
[1773240374817,0.07054375,70878.0,70871.0,0.00022]
[1773240375059,0.00148,70877.0,70871.0,0.00022]
[1773240375261,0.00148,70877.0,70863.0,0.00022]
[1773240375477,0.07054375,70878.0,70856.0,0.00022]
[1773240375684,0.00148,70876.0,70856.0,0.00022]
[1773240375836,0.00148,70876.0,70848.0,0.07057362]
[1773240376609,0.00148,70876.0,70847.0,0.07120979]
[1773240376811,0.07054673,70875.0,70847.0,0.0006352]
[1773240376961,0.0900522,70874.0,70848.0,0.07057362]
[1773240377162,0.0900522,70874.0,70844.0,0.07205674]
[1773240377591,0.0900522,70874.0,70844.0,0.00148]